fUST/lending_fUST_20251014
["ID","MTS","AMOUNT","RATE_DAILY","PERIOD"]
[391168367,1760405465622,-500.0,0.00026429,2]
[391168368,1760405465631,-250.0,0.00026429,2]
[391168369,1760405465641,-151.0,0.00026429,2]
[391168370,1760405465650,-151.0,0.00026429,2]
[391168371,1760405465659,-151.0,0.00026429,2]
[391168372,1760405465669,-500.0,0.00026429,2]
[391168373,1760405465679,-151.0,0.00026429,2]
[391168374,1760405465688,-250.0,0.00026429,2]
[391168375,1760405465698,-151.0,0.00026429,2]
[391168376,1760405465707,-151.0,0.00026429,2]
[391168377,1760405465715,-500.0,0.00026429,2]
[391168378,1760405465724,-151.0,0.00026429,2]
[391168379,1760405465733,-250.0,0.00026429,2]
[391168380,1760405465742,-151.0,0.00026429,2]
[391168381,1760405465752,-151.0,0.00026429,2]
[391168382,1760405465762,-521.78756786,0.00026429,2]
[391168383,1760405465771,-151.0,0.00026429,2]
[391168384,1760405465781,-151.0,0.00026429,2]
[391168385,1760405465790,-250.0,0.00026429,2]
[391168386,1760405465799,-151.0,0.00026429,2]
[391168387,1760405465808,-151.0,0.00026429,2]
[391168388,1760405465817,-250.0,0.00026429,2]
[391168389,1760405465827,-151.0,0.00026429,2]
[391168390,1760405465836,-151.0,0.00026429,2]
[391168391,1760405465845,-250.0,0.00026429,2]
[391168392,1760405465855,-151.0,0.00026429,2]
[391168393,1760405465865,-151.0,0.00026429,2]
[391168394,1760405465875,-250.0,0.00026429,2]
[391168395,1760405465884,-151.0,0.00026429,2]
[391168396,1760405465893,-151.0,0.00026429,2]
[391168397,1760405465902,-151.0,0.00026429,2]
[391168398,1760405465912,-250.0,0.00026429,2]
[391168399,1760405465921,-151.0,0.00026429,2]
[391168400,1760405465931,-151.0,0.00026429,2]
[391168401,1760405465945,-151.72188997,0.00026429,2]
[391168402,1760405465955,-250.0,0.00026429,2]
[391168403,1760405465964,-151.0,0.00026429,2]
[391168404,1760405465974,-151.0,0.00026429,2]
[391168405,1760405465983,-260.07756688,0.00026429,2]
[391168406,1760405465993,-295.76104844,0.00026429,2]
[391168407,1760405466002,-151.0,0.00026429,2]
[391168408,1760405466012,-151.0,0.00026429,2]
[391168409,1760405466022,-151.0,0.00026429,2]
[391168410,1760405466033,-151.0,0.00026429,2]
[391168411,1760405466043,-151.0,0.00026429,2]
[391168412,1760405466053,-151.0,0.00026429,2]
[391168413,1760405466062,-250.0,0.00026429,2]
[391168414,1760405466072,-151.0,0.00026429,2]
[391168415,1760405466084,-250.0,0.00026429,2]
[391168416,1760405466093,-151.0,0.00026429,2]
[391168417,1760405466102,-250.0,0.00026429,2]
[391168418,1760405466111,-151.0,0.00026429,2]
[391168419,1760405466120,-250.0,0.00026429,2]
[391168420,1760405466129,-194.63809315,0.00026429,2]
[391168421,1760405466139,-250.0,0.00026429,2]
[391168422,1760405466148,-250.0,0.00026429,2]
[391168423,1760405466157,-250.0,0.00026429,2]
[391168424,1760405466167,-250.0,0.00026429,2]
[391168425,1760405466176,-250.0,0.00026429,2]
[391168426,1760405466186,-250.0,0.00026429,2]
[391168427,1760405466196,-250.0,0.00026429,2]
[391168428,1760405466206,-250.0,0.00026429,2]
[391168429,1760405466216,-500.0,0.00026429,2]
[391168430,1760405466226,-250.0,0.00026429,2]
[391168431,1760405466236,-250.0,0.00026429,2]
[391168432,1760405466247,-617.56311563,0.00026429,2]
[391168433,1760405466257,-250.0,0.00026429,2]
[391168434,1760405466267,-225.0,0.00026475,2]
[391168435,1760405466276,-1422.44020861,0.00026484,2]
[391168436,1760405466286,-500.0,0.00026556,2]
[391168437,1760405466295,-3549.25944729,0.00026604,2]
[391168438,1760405466304,-1000.0,0.00026615,5]
[391168439,1760405466314,-160.0,0.00026662,4]
[391168440,1760405466324,-864.0,0.0002669,30]
[391168441,1760405466333,-535.26025829,0.00026757,2]
[391168442,1760405466343,-598.5369784,0.00026759,2]
[391168443,1760405466352,-402.34485587,0.000268,30]
[391168444,1760405466361,-225.0,0.00026896,2]
[391168445,1760405466370,-168.3888056,0.00026977,2]
[391168446,1760405466380,-151.0,0.00026977,2]
[391168447,1760405466389,-19292.2273969,0.00026977,2]
[391168448,1760405466398,-225.0,0.00027011,2]
[391168449,1760405466407,-8167.71126427,0.00027011,2]
[391168450,1760405466416,-823.0,0.00027016,2]
[391168451,1760405466425,-151.0,0.00027077,7]
[391168452,1760405466434,-151.0,0.00027077,7]
[391168453,1760405466443,-151.0,0.00027077,7]
[391168454,1760405466452,-151.0,0.00027077,7]
[391168455,1760405466461,-151.0,0.00027077,7]
[391168456,1760405466471,-151.0,0.00027077,7]
[391168457,1760405466480,-151.0,0.00027077,7]
[391168458,1760405466489,-151.0,0.00027077,7]
[391168459,1760405466502,-151.0,0.00027077,7]
[391168460,1760405466512,-152.428226,0.00027077,7]
[391168461,1760405466522,-151.0,0.00027077,7]
[391168462,1760405466531,-151.0,0.00027077,7]
[391168463,1760405466541,-224.19734538,0.00027091,2]
[391168464,1760405466550,-1033.8,0.00027192,2]
[391168465,1760405466559,-150.31147592,0.00027203,7]
[391168466,1760405466569,-225.0,0.0002725,7]
[391168467,1760405466580,-569.42580669,0.00027357,2]
[391168468,1760405466589,-10012.03,0.00027397,4]
[391168469,1760405466598,-150.0,0.00027397,5]
[391168470,1760405466607,-4047.7,0.000274,2]
[391168471,1760405466617,-953.0,0.00027403,2]
[391168472,1760405466626,-225.0,0.0002742,2]
[391168473,1760405466635,-160.0,0.00027515,5]
[391168474,1760405466644,-319.67970373,0.00027525,2]
[391168475,1760405466653,-151.0,0.00027525,2]
[391168476,1760405466662,-20006.03981059,0.00027525,2]
[391168477,1760405466672,-225.0,0.00027695,2]
[391168478,1760405466681,-168.3888056,0.00027798,2]
[391168479,1760405466690,-500.0,0.0002785,5]
[391168480,1760405466699,-603.59135509,0.00027957,2]
[391168481,1760405466708,-4781.0,0.00027966,2]
[391168482,1760405466717,-225.0,0.00027996,2]
[391168483,1760405466726,-225.0,0.00028012,2]
[391168484,1760405466735,-500.526,0.00028041,2]
[391168485,1760405466744,-2203.936,0.00028041,2]
[391168486,1760405466754,-600.0,0.00028065,2]
[391168487,1760405466764,-598.5369784,0.00028071,2]
[391168488,1760405466773,-20746.26328358,0.00028073,2]
[391168489,1760405466782,-4781.0,0.00028077,2]
[391168490,1760405466791,-225.0,0.00028081,2]
[391168491,1760405466801,-2161.0,0.00028082,2]
[391168492,1760405466810,-700.0,0.00028129,7]
[391168493,1760405466819,-800.0,0.00028144,2]
[391168494,1760405466828,-69042.53,0.000282,7]
[391168495,1760405466838,-800.0,0.00028208,2]
[391168496,1760405466848,-800.0,0.00028223,2]
[391168497,1760405466857,-225.0,0.00028293,2]
[391168498,1760405466866,-800.0,0.00028311,2]
[391168499,1760405466876,-1292.25,0.00028325,2]
[391168500,1760405466886,-225.0,0.00028338,2]
[391168501,1760405466896,-225.0,0.00028344,2]
[391168502,1760405466905,-225.0,0.00028352,2]
[391168503,1760405466915,-160.0,0.00028369,6]
[391168504,1760405466924,-501.34354612,0.00028398,5]
[391168505,1760405466933,-981.0,0.00028441,2]
[391168506,1760405466942,-406.048,0.00028441,2]
[391168507,1760405466952,-411.0,0.00028441,2]
[391168508,1760405466961,-800.0,0.00028523,2]
[391168509,1760405466970,-4781.0,0.00028532,7]
[391168510,1760405466979,-637.75690349,0.00028557,2]
[391168511,1760405466988,-600.0,0.00028582,2]
[391168512,1760405466998,-21513.87502507,0.00028621,2]
[391168513,1760405467007,-225.0,0.00028728,2]
[391168514,1760405467016,-8167.71126427,0.00028743,2]
[391168515,1760405467025,-225.0,0.0002876,2]
[391168516,1760405467036,-513.35155472,0.00028767,120]
[391168517,1760405467046,-10012.03,0.00028767,6]
[391168518,1760405467055,-145521.67483814,0.000288,30]
[391168519,1760405467064,-800.0,0.00028801,2]
[391168520,1760405467073,-225.0,0.00028802,2]
[391168521,1760405467082,-800.0,0.00028808,2]
[391168522,1760405467091,-225.0,0.00028852,2]
[391168523,1760405467099,-600.0,0.0002888,2]
[391168524,1760405467109,-225.0,0.00028888,2]
[391168525,1760405467118,-800.0,0.00028894,2]
[391168526,1760405467127,-4047.7,0.000289,2]
[391168527,1760405467137,-200.0,0.0002891,120]
[391168528,1760405467146,-700.0,0.00028951,7]
[391168529,1760405467155,-248.68945833,0.00028953,2]
[391168530,1760405467164,-225.0,0.00028988,2]
[391168531,1760405467173,-800.0,0.00028989,2]
[391168532,1760405467183,-225.0,0.0002899,2]
[391168533,1760405467192,-800.0,0.00028991,2]
[391168534,1760405467202,-1071.17,0.00029,2]
[391168535,1760405467212,-150.0,0.00029,10]
[391168536,1760405467222,-7103.83199843,0.00029,30]
[391168537,1760405467231,-402.34485587,0.00029,30]
[391168538,1760405467241,-151.0,0.00029094,30]
[391168539,1760405467252,-439.69713099,0.00029102,2]
[391168540,1760405467263,-1758.78852396,0.00029102,2]
[391168541,1760405467273,-3953.31690474,0.00029102,2]
[391168542,1760405467282,-630.7910362,0.00029102,2]
[391168543,1760405467292,-2520.64098067,0.00029102,2]
[391168544,1760405467303,-1358.77571986,0.00029118,2]
[391168545,1760405467313,-249.29763941,0.00029134,2]
[391168546,1760405467323,-997.19055765,0.00029134,2]
[391168547,1760405467333,-2243.67875471,0.00029134,2]
[391168548,1760405467342,-3988.76223059,0.00029134,2]
[391168549,1760405467352,-6232.4409853,0.00029134,2]
[391168550,1760405467363,-8965.74030381,0.00029134,2]
[391168551,1760405467373,-371.08515826,0.00029134,2]
[391168552,1760405467383,-671.9224519,0.00029157,2]
[391168553,1760405467393,-174.61919141,0.00029167,2]
[391168554,1760405467403,-800.0,0.00029168,2]
[391168555,1760405467413,-22309.888401,0.00029169,2]
[391168556,1760405467423,-1071.17,0.00029174,2]
[391168557,1760405467434,-600.0,0.00029178,2]
[391168558,1760405467443,-160.0,0.00029222,7]
[391168559,1760405467453,-162.38008899,0.00029222,5]
[391168560,1760405467463,-800.0,0.00029238,2]
[391168561,1760405467474,-800.0,0.00029262,2]
[391168562,1760405467484,-800.0,0.0002927,2]
[391168563,1760405467494,-151.0,0.00029294,30]
[391168564,1760405467507,-151.0,0.00029294,30]
[391168565,1760405467517,-299.684051,0.00029294,30]
[391168566,1760405467528,-524.495487,0.00029294,30]
[391168567,1760405467538,-524.495487,0.00029294,30]
[391168568,1760405467548,-154.965494,0.00029294,30]
[391168569,1760405467559,-524.495487,0.00029294,30]
[391168570,1760405467570,-151.0,0.00029294,30]
[391168571,1760405467579,-524.495487,0.00029294,30]
[391168572,1760405467589,-151.0,0.00029294,30]
[391168573,1760405467598,-151.0,0.00029294,30]
[391168574,1760405467607,-151.0,0.00029294,30]
[391168575,1760405467616,-151.0,0.00029294,30]
[391168576,1760405467625,-151.0,0.00029294,30]
[391168577,1760405467635,-151.0,0.00029294,30]
[391168578,1760405467644,-151.0,0.00029294,30]
[391168579,1760405467654,-151.0,0.00029294,30]
[391168580,1760405467665,-151.0,0.00029294,30]
[391168581,1760405467675,-500.0,0.00029315,30]
[391168582,1760405467684,-328.68644105,0.00029315,30]
[391168583,1760405467694,-1071.17,0.00029348,2]
[391168584,1760405467707,-1000.0,0.00029359,30]
[391168585,1760405467716,-151.0,0.00029359,2]
[391168586,1760405467728,-801.67168,0.00029359,30]
[391168587,1760405467738,-801.67168,0.00029359,30]
[391168588,1760405467747,-801.67168,0.00029359,30]
[391168589,1760405467758,-801.67168,0.00029359,30]
[391168590,1760405467866,-151.0,0.00029359,30]
[391168591,1760405467877,-151.0,0.00029359,30]
[391168592,1760405467887,-151.0,0.00029359,30]
[391168593,1760405467896,-151.0,0.00029359,30]
[391168594,1760405467905,-217.751633,0.00029359,30]
[391168595,1760405467915,-217.751633,0.00029359,30]
[391168596,1760405467925,-151.0,0.00029359,30]
[391168597,1760405467934,-217.751633,0.00029359,30]
[391168598,1760405467943,-151.0,0.00029359,30]
[391168599,1760405467953,-217.751633,0.00029359,30]
[391168600,1760405467962,-598.5369784,0.00029383,2]
[391168601,1760405467971,-1152.0,0.00029388,2]
[391168602,1760405467981,-1358.77571987,0.00029419,2]
[391168603,1760405467990,-1532.36608711,0.00029432,2]
[391168604,1760405467999,-186.74785753,0.00029443,10]
[391168605,1760405468008,-158899.3356,0.00029444,2]
[391168606,1760405468018,-151.0,0.00029444,30]
[391168607,1760405468028,-151.0,0.00029444,30]
[391168608,1760405468037,-151.0,0.00029444,30]
[391168609,1760405468047,-151.0,0.00029444,30]
[391168610,1760405468056,-151.0,0.00029444,30]
[391168611,1760405468066,-151.0,0.00029444,30]
[391168612,1760405468076,-213.260528,0.00029444,30]
[391168613,1760405468086,-151.0,0.00029444,30]
[391168614,1760405468095,-1550.7,0.00029458,2]
[391168615,1760405468104,-600.0,0.00029475,2]
[391168616,1760405468113,-600022.55573554,0.00029488,2]
[391168617,1760405468123,-151.0,0.000295,30]
[391168618,1760405468134,-151.0,0.000295,30]
[391168619,1760405468143,-151.0,0.000295,30]
[391168620,1760405468152,-197.924776,0.000295,30]
[391168621,1760405468161,-151.0,0.000295,15]
[391168622,1760405468171,-151.0,0.000295,15]
[391168623,1760405468180,-151.0,0.000295,30]
[391168624,1760405468189,-151.0,0.000295,30]
[391168625,1760405468198,-151.0,0.000295,30]
[391168626,1760405468208,-151.0,0.000295,30]
[391168627,1760405468217,-1504.917789,0.000295,2]
[391168628,1760405468227,-1071.17,0.00029522,2]
[391168629,1760405468237,-800.0,0.0002956,2]
[391168630,1760405468247,-95000.0,0.0002956,2]
[391168631,1760405468256,-800.0,0.00029574,2]
[391168632,1760405468265,-129376.32930282,0.00029601,2]
[391168633,1760405468274,-205.51685828,0.00029608,7]
[391168634,1760405468284,-800.0,0.00029646,2]
[391168635,1760405468294,-1071.17,0.00029696,2]
[391168636,1760405468303,-1001.969663,0.000297,2]
[391168637,1760405468313,-800.0,0.00029734,2]
[391168638,1760405468322,-155.0098587,0.00029752,2]
[391168639,1760405468332,-15535.5495626,0.00029752,2]
[391168640,1760405468342,-151.0,0.00029752,30]
[391168641,1760405468351,-176.5478,0.00029752,30]
[391168642,1760405468360,-176.5478,0.00029752,30]
[391168643,1760405468369,-176.5478,0.00029752,30]
[391168644,1760405468379,-176.5478,0.00029752,30]
[391168645,1760405468389,-151.0,0.00029752,30]
[391168646,1760405468398,-32486.568458,0.00029752,2]
[391168647,1760405468407,-299.577907,0.00029752,30]
[391168648,1760405468417,-299.577907,0.00029752,30]
[391168649,1760405468426,-299.577907,0.00029752,30]
[391168650,1760405468435,-299.577907,0.00029752,30]
[391168651,1760405468444,-2485.7942623,0.00029752,2]
[391168652,1760405468453,-706.0880003,0.00029757,2]
[391168653,1760405468463,-3473.14621217,0.00029761,5]
[391168654,1760405468472,-700.0,0.00029773,7]
[391168655,1760405468481,-600.0,0.00029773,2]
[391168656,1760405468490,-125783.27526264,0.000298,120]
[391168657,1760405468502,-318.93407856,0.000298,120]
[391168658,1760405468512,-151.0,0.000298,30]
[391168659,1760405468522,-151.0,0.000298,30]
[391168660,1760405468531,-151.0,0.000298,30]
[391168661,1760405468541,-151.0,0.000298,30]
[391168662,1760405468550,-151.0,0.000298,30]
[391168663,1760405468560,-151.0,0.000298,30]
[391168664,1760405468569,-1002.0977202,0.00029899,2]
[391168665,1760405468579,-200.0,0.0002994,25]
[391168666,1760405468590,-200.0,0.00029966,120]
[391168667,1760405468600,-203003.84291892,0.0003,9]
[391168668,1760405468609,-521.13417745,0.0003,2]
[391168669,1760405468619,-236.01320464,0.0003,120]
[391168670,1760405468629,-200.0,0.0003,120]
[391168671,1760405468638,-2016.59,0.0003,12]
[391168672,1760405468648,-190.29800946,0.0003,60]
[391168673,1760405468657,-121778.22,0.0003,9]
[391168674,1760405468667,-525.02219939,0.0003,2]
[391168675,1760405468676,-402.34485587,0.0003,120]
[391168676,1760405468685,-925.39644589,0.0003,10]
[391168677,1760405468694,-532635.51527509,0.0003,9]
[391168678,1760405468703,-13083.65478669,0.0003,2]
[391168679,1760405468713,-7282.72528208,0.0003,2]
[391168680,1760405468722,-2000.0,0.0003,2]
[391168681,1760405468731,-7038.96,0.0003,2]
[391168682,1760405468741,-789.86051586,0.0003,2]
[391168683,1760405468750,-187917.46781908,0.0003,9]
[391168684,1760405468760,-45011.52194398,0.0003,3]
[391168685,1760405468770,-5908.689062,0.0003,60]
[391168686,1760405468779,-2000.0,0.0003,2]
[391168687,1760405468788,-163.86975,0.0003,2]
[391168688,1760405468798,-164.1165,0.0003,2]
[391168689,1760405468807,-151.0,0.0003,30]
[391168690,1760405468817,-151.0,0.0003,30]
[391168691,1760405468827,-151.0,0.0003,30]
[391168692,1760405468837,-151.0,0.0003,30]
[391168693,1760405468846,-151.0,0.0003,30]
[391168694,1760405468856,-151.0,0.0003,30]
[391168695,1760405468865,-151.0,0.0003,30]
[391168696,1760405468874,-151.0,0.0003,30]
[391168697,1760405468883,-151.0,0.0003,30]
[391168698,1760405468893,-151.0,0.0003,30]
[391168699,1760405468902,-151.0,0.0003,30]
[391168700,1760405468912,-151.0,0.0003,30]
[391168701,1760405468921,-151.0,0.0003,30]
[391168702,1760405468930,-151.0,0.0003,15]
[391168703,1760405468940,-151.0,0.0003,30]
[391168704,1760405468949,-151.0,0.0003,30]
[391168705,1760405468959,-151.0,0.0003,30]
[391168706,1760405468969,-151.0,0.0003,30]
[391168707,1760405468979,-151.0,0.0003,30]
[391168708,1760405468988,-151.0,0.0003,30]
[391168709,1760405468998,-151.0,0.0003,30]
[391168710,1760405469009,-151.0,0.0003,30]
[391168711,1760405469019,-163.570644,0.0003,30]
[391168712,1760405469029,-168.769384,0.0003,30]
[391168713,1760405469039,-151.0,0.0003,30]
[391168714,1760405469048,-151.0,0.0003,30]
[391168715,1760405469058,-151.0,0.0003,30]
[391168716,1760405469068,-151.0,0.0003,30]
[391168717,1760405469077,-151.0,0.0003,30]
[391168718,1760405469087,-151.0,0.0003,30]
[391168719,1760405469096,-151.0,0.0003,30]
[391168720,1760405469106,-176.5478,0.0003,30]
[391168721,1760405469115,-176.5478,0.0003,30]
[391168722,1760405469125,-176.5478,0.0003,30]
[391168723,1760405469136,-176.5478,0.0003,30]
[391168724,1760405469145,-295.593062,0.0003,30]
[391168725,1760405469155,-164.27475,0.0003,2]
[391168726,1760405469163,-299.577907,0.0003,30]
[391168727,1760405469172,-299.577907,0.0003,30]
[391168728,1760405469181,-299.577907,0.0003,30]
[391168729,1760405469190,-299.577907,0.0003,30]
[391168730,1760405469199,-151.0,0.0003,30]
[391168731,1760405469208,-151.0,0.0003,30]
[391168732,1760405469217,-151.0,0.0003,30]
[391168733,1760405469226,-151.0,0.0003,30]
[391168734,1760405469235,-151.0,0.0003,30]
[391168735,1760405469244,-151.0,0.0003,30]
[391168736,1760405469254,-151.0,0.0003,30]
[391168737,1760405469263,-151.0,0.0003,30]
[391168738,1760405469272,-151.0,0.0003,30]
[391168739,1760405469281,-151.0,0.0003,30]
[391168740,1760405469290,-151.0,0.0003,30]
[391168741,1760405469299,-151.0,0.0003,30]
[391168742,1760405469308,-151.0,0.0003,30]
[391168743,1760405469318,-151.0,0.0003,30]
[391168744,1760405469327,-524.495487,0.0003,30]
[391168745,1760405469336,-524.495487,0.0003,30]
[391168746,1760405469346,-524.495487,0.0003,30]
[391168747,1760405469355,-151.0,0.0003,30]
[391168748,1760405469364,-524.4954806,0.0003,30]
[391168749,1760405469373,-151.0,0.0003,30]
[391168750,1760405469382,-151.0,0.0003,30]
[391168751,1760405469391,-151.0,0.0003,30]
[391168752,1760405469400,-151.0,0.0003,30]
[391168753,1760405469409,-151.0,0.0003,30]
[391168754,1760405469418,-151.0,0.0003,30]
[391168755,1760405469427,-151.0,0.0003,30]
[391168756,1760405469436,-151.0,0.0003,30]
[391168757,1760405469445,-151.0,0.0003,30]
[391168758,1760405469454,-801.67168,0.0003,30]
[391168759,1760405469463,-801.67168,0.0003,30]
[391168760,1760405469472,-801.67168,0.0003,30]
[391168761,1760405469483,-801.671673,0.0003,30]
[391168762,1760405469493,-151.0,0.0003,30]
[391168763,1760405469506,-151.0,0.0003,30]
[391168764,1760405469515,-151.0,0.0003,30]
[391168765,1760405469524,-217.751633,0.0003,30]
[391168766,1760405469534,-217.751633,0.0003,30]
[391168767,1760405469543,-160.0,0.0003,30]
[391168768,1760405469552,-151.0,0.0003,30]
[391168769,1760405469562,-217.751633,0.0003,30]
[391168770,1760405469571,-151.0,0.0003,30]
[391168771,1760405469580,-217.751625,0.0003,30]
[391168772,1760405469590,-1103.67681061,0.0003,7]
[391168773,1760405469599,-301.35646604,0.0003,120]
[391168774,1760405469609,-597160.78124367,0.0003,9]
[391168775,1760405469618,-1500.0,0.0003,2]
[391168776,1760405469627,-1000.0,0.0003,4]
[391168777,1760405469637,-600.0,0.00030071,2]
[391168778,1760405469646,-200.0,0.00030089,120]
[391168779,1760405469655,-143621.51531401,0.000301,3]
[391168780,1760405469663,-301.99999986,0.000301,30]
[391168781,1760405469672,-151.469271,0.000301,30]
[391168782,1760405469681,-151.0,0.000301,30]
[391168783,1760405469690,-152.866507,0.000301,30]
[391168784,1760405469699,-151.0,0.000301,30]
[391168785,1760405469708,-151.0,0.000301,30]
[391168786,1760405469717,-69042.53,0.000301,7]
[391168787,1760405469726,-9211.58844416,0.000301,3]
[391168788,1760405469734,-52321.82750148,0.0003012,7]
[391168789,1760405469743,-151.0,0.0003012,30]
[391168790,1760405469753,-151.0,0.0003012,30]
[391168791,1760405469761,-151.0,0.0003012,30]
[391168792,1760405469770,-151.0,0.0003012,30]
[391168793,1760405469779,-242.026936,0.0003012,30]
[391168794,1760405469788,-151.0,0.0003012,30]
[391168795,1760405469797,-151.0,0.0003012,30]
[391168796,1760405469806,-151.0,0.0003012,30]
[391168797,1760405469814,-151.0,0.0003012,30]
[391168798,1760405469824,-151.0,0.0003012,15]
[391168799,1760405469833,-161.411205,0.0003012,30]
[391168800,1760405469841,-151.0,0.0003012,30]
[391168801,1760405469850,-151.0,0.0003012,30]
[391168802,1760405469859,-151.0,0.0003012,30]
[391168803,1760405469960,-281.581538,0.0003012,30]
[391168804,1760405469969,-151.0,0.0003012,30]
[391168805,1760405469979,-151.0,0.0003012,30]
[391168806,1760405469988,-176.5478,0.0003012,30]
[391168807,1760405470000,-176.5478,0.0003012,30]
[391168808,1760405470009,-176.5478,0.0003012,30]
[391168809,1760405470018,-176.5478,0.0003012,30]
[391168810,1760405470028,-299.577907,0.0003012,30]
[391168811,1760405470037,-299.577907,0.0003012,30]
[391168812,1760405470047,-299.577907,0.0003012,30]
[391168813,1760405470056,-299.577907,0.0003012,30]
[391168814,1760405470065,-873.196581,0.00030136,2]
[391168815,1760405470074,-150.0,0.00030136,120]
[391168816,1760405470084,-10012.03,0.00030136,8]
[391168817,1760405470094,-200.32847528,0.00030137,5]
[391168818,1760405470103,-200.0,0.00030146,120]
[391168819,1760405470113,-200.0,0.00030166,120]
[391168820,1760405470122,-170.52,0.000302,60]
[391168821,1760405470131,-160.54555966,0.000302,120]
[391168822,1760405470140,-669.58233546,0.0003022,2]
[391168823,1760405470149,-200.0,0.00030241,120]
[391168824,1760405470158,-150.0,0.00030273,120]
[391168825,1760405470167,-22481.04781545,0.0003034,2]
[391168826,1760405470177,-249.12919324,0.00030354,30]
[391168827,1760405470186,-740.2535487,0.00030357,2]
[391168828,1760405470195,-600.0,0.00030368,2]
[391168829,1760405470204,-200.0,0.00030381,10]
[391168830,1760405470214,-151.0,0.00030382,30]
[391168831,1760405470224,-151.0,0.00030382,30]
[391168832,1760405470232,-151.612106,0.00030382,30]
[391168833,1760405470241,-151.0,0.00030389,30]
[391168834,1760405470250,-151.0,0.00030389,30]
[391168835,1760405470259,-151.0,0.00030389,30]
[391168836,1760405470268,-151.0,0.00030389,15]
[391168837,1760405470278,-151.0,0.00030389,30]
[391168838,1760405470287,-287.987644,0.00030389,30]
[391168839,1760405470295,-176.5478,0.00030389,30]
[391168840,1760405470305,-176.5478,0.00030389,30]
[391168841,1760405470315,-176.5478,0.00030389,30]
[391168842,1760405470329,-176.547795,0.00030389,30]
[391168843,1760405470339,-299.577907,0.00030389,30]
[391168844,1760405470348,-299.577907,0.00030389,30]
[391168845,1760405470358,-299.577907,0.00030389,30]
[391168846,1760405470368,-299.577901,0.00030389,30]
[391168847,1760405470379,-151.0,0.00030393,30]
[391168848,1760405470388,-151.0,0.00030393,30]
[391168849,1760405470398,-224.729625,0.00030393,30]
[391168850,1760405470407,-151.0,0.00030393,30]
[391168851,1760405470416,-151.0,0.00030393,30]
[391168852,1760405470426,-150.0,0.0003041,120]
[391168853,1760405470437,-10000.0,0.00030457,60]
[391168854,1760405470446,-10000.0,0.00030457,60]
[391168855,1760405470456,-10000.0,0.00030457,60]
[391168856,1760405470465,-10000.0,0.00030457,60]
[391168857,1760405470474,-10000.0,0.0003046,60]
[391168858,1760405470484,-10000.0,0.00030461,60]
[391168859,1760405470495,-10000.0,0.00030461,60]
[391168860,1760405470508,-10000.0,0.00030461,60]
[391168861,1760405470517,-10000.0,0.00030461,60]
[391168862,1760405470528,-10000.0,0.00030461,60]
[391168863,1760405470539,-10000.0,0.00030461,60]
[391168864,1760405470549,-10000.0,0.00030461,60]
[391168865,1760405470558,-10000.0,0.00030461,60]
[391168866,1760405470567,-10000.0,0.00030461,60]